Workbook

Sheet How to use the SGUE tool
A2: HEATING Mode: three tabs. One per climate (average, colder, warmer)
A3: COOLING Mode: one tab for average climate.
A5: For each tab
A7: From row 1 to 31 : Input data for calculating SGUEh and SGUEc
A8: All coloured cells shall be filled in, because they are used for the calculations.
A9: All grey cells are optional to fill in ; they provide information on the unit for which the calculation is made
A10: Some cells shall be filled in by using a selected list of options
A12: Calculate / Reset
A13: To launch the calculations, click on "Calculate" button. If the required data for the calculations are missing or wrong, error messages will appear until all data are inserted correctly.
A14: To reset all calculations, click on "Reset" button: all input data and calculations will be reset
A16: Chek list:
A17: It provides a list of all missing or wrong values. It is updated as soon as the data are filled in.
A19: Bin calculation
A20: Cells of columns B to D are blocked and values cannot be changed
A22: Results : Energy efficiency
A23: The final results are: Heating: SGUEhnet, SAEFhnet SPERhnet, SGUEh, SAEF, SAEFhon, SPERh, hs according to ErP regulation; Cooling: SGUEc, SAEFcon, SAEFc.
A25: Error messages
A26: In case of error in input data, an error message will appear, once the calculation is launched by clicking on Calculate"
A27: Correct the data and click again on "Calculate"
A29: Warning messages
A30: In case no data are provided for backup heater and/or for primary energy factors, a warning message appear to advise that default value are used for the calculation
A32: This tool has been developed by POLITECNICO DI MILANO by the use of Microsoft Excel 2013 version 15.0.5233.1000 (64 bit). The tool shall be used by the empowered certification bodies of the Heat Pump Keymark product certification scheme and maybe used by manufacturers in order to calculate their performance in a consistence with the certification bodies. Neither the developer nor the Heat Pump Keymark may be held responsible for any errors that may occur from the use of the tool.
A34: Version date: 2020-04-20

Sheet SGUEh water_based HP average
A1: Calculation of energy efficiency - HEATING - Average climate
H2: Backup heater for bivalent units
A3: Product reference | D3: Reference conditions | H3: Backup heater data - auxiliary gas boiler | M3: Primary energy factors
A4: Manufacturer | D4: Climate | E4: average | K4: Default values | N4: Kw/kW | O4: Default values
A5: Product reference | D5: Tdesignh | E5: -10 | F5: °C | H5: ηAux (GCV) | I5: =0.85*I6+0.15*I7 -> 0 | J5: % | K5: 0.8 | M5: PrimGAS (GCV) | N5: 1 | O5: 1
A6: Type of heat pump | B6: water-to-water | D6: Pdesignh | E6: 10 | F6: kW | H6: η30% (GCV) | J6: % | M6: Primelec | N6: 2.1 | O6: 2.5 | V6: chek Pdes | W6: =IF(OR(E6<0,E6="",NOT(ISNUMBER(E6))),1,"") ->  | AA6: =IF(E6="","Pdesign Missing","") ->  | AB6: =IF(E6<0,"Pdesign Negative","") ->  | AC6: =IF(NOT(ISNUMBER(E6)),"Pdesign is not a number","") -> 
A7: Operating mode | B7: heating only | D7: Tbiv | E7: -7 | F7: °C | H7: η100% (GCV) | J7: % | V7: Chek Tbiv | W7: =IF(E7="",1,"") ->  | X7: =IF(E7>2,1,"") ->  | Y7: =IF(E7<E5,1,"") ->  | AA7: =IF(E7="","Tbiv Missing","") ->  | AB7: =IF(E7>2,"Tbiv > 2°C","") ->  | AC7: =IF(E7<E5,"Tbiv < Tdesign","") -> 
A8: Temperature application | B8: 55°C | D8: TOL | E8: -10 | F8: °C | H8: eAux | J8: kW | K8: 0.02 | M8: Chek list: | V8: Chek TOL | W8: =IF(E8="",1,"") ->  | X8: =IF(E8>-7,1,"") ->  | Y8: =IF(E7<E8,1,"") ->  | AA8: =IF(E8="","TOL Missing","") ->  | AB8: =IF(E8>=2,"TOL >2","") ->  | AC8: =IF(E7<E8," TOL>Tbiv ","") -> 
A9: Water flow | B9: fixed | D9: Heh | E9: 2066 | F9: hours | M9: =AA6&" "&AB6&" "&AC6 -> 
A10: Water outlet temperature | B10: fixed | D10: Qrefh | E10: =IF($W$32>0,"",$E$9*$E$6) -> 20660 | F10: kWh | M10: =AA7 -> 
A11: Capacity control | B11: fixed | V11: η30% (GCV) | W11: =IF(OR(I6<0,AND(I6<>"",NOT(ISNUMBER(I6)))),1,"") ->  | AA11: =IF(W11=1,"Incorrect "&V11,"") -> 
A12: Calorific value of test gas | B12: GCV | M12: =AA17 ->  | V12: η100% (GCV) | W12: =IF(OR(I7<0,AND(I7<>"",NOT(ISNUMBER(I7)))),1,"") ->  | AA12: =IF(W12=1,"Incorrect "&V12,"") -> 
M13: =AA28&AB28 ->  | V13: eAux | W13: =IF(OR(I8<0,AND(I8<>"",NOT(ISNUMBER(I8)))),1,"") -> 
M14: =AA11&" "&AA12&" "&AA13 ->  | V14: PrimGAS (GCV) | W14: =IF(OR(N5<0,AND(N5<>"",NOT(ISNUMBER(N5)))),1,"") -> 
A15: Performance data | M15: =AA14&" "&AA15 ->  | V15: Primelec | W15: =IF(OR(N6<0,AND(N6<>"",NOT(ISNUMBER(N6)))),1,"") -> 
A16: Condition | B16: Outdoor air T°C | C16: Part load ratio (%) | D16: Part Load (kW) | E16: Inlet / outlet water temperatures for testing | F16: Declared Capacity (kW) | G16: Declared GUEd | H16: Declared AEFd
A17: A | B17: -7 | C17: =(B17-16)/($E$5-16) -> 0.8846153846 | D17: =IF($W$32>0,"",$E$6*C17) -> 8.846153846 | F17: 10 | G17: 3 | H17: 0.1 | K17: Energy Efficiency | V17: Chek dati | W17: =IF(AND(F17>0,ISNUMBER(F17)),"",1) ->  | AA17: =IF(SUM(W17:Y22)>0,"Complete performance data with correct values","") -> 
A18: B | B18: 2 | C18: =(B18-16)/($E$5-16) -> 0.5384615385 | D18: 5.384615385 | F18: 10 | G18: 3 | H18: 0.1 | K18: SGUEhnet | L18: SAEFhnet | M18: SPERhnet | N18: SGUEh | O18: SAEFon | P18: SAEF | Q18: SPERh | R18: ηs
A19: C | B19: 7 | C19: 0.3461538462 | D19: 3.461538462 | F19: 10 | G19: 3 | H19: 0.1 | K19: =IF($W$32>0,"",O63/P63) -> 3 | L19: =IF($W$32>0,"",O63/Q63) -> 0.1 | M19: =IF($W$32>0,"",IF(AND($N$5<>0,$N$6<>0),1/($N$5/$K$19+$N$6/L$19),IF(AND($N$5="",$N$6<>0),1/($O$5/$K$19+$N$6/L$19),IF(AND($N$5<>0,$N$6=""),1/($N$5/$K$19+$O$6/L$19),1/($O$5/$K$19+$O$6/L$19))))) -> 0.046875 | N19: =IF($W$32>0,"",K63/M63) -> 3.010946399 | O19: =IF($W$32>0,"",K63/N63) -> 0.099868237 | P19: =IF($W$32>0,"",IF($B$7="heating only",E10/(E10/O19+D29+D30+D31),E10/(E10/O19+I29+I30+I31))) -> 0.09804359766 | Q19: =IF($W$32>0,"",IF(AND($N$5<>0,$N$6<>0),1/($N$5/$N$19+$N$6/P$19),(IF(AND($N$5="",$N$6<>0),1/($O$5/$N$19+$N$6/P$19),IF(AND($N$5<>0,$N$6=""),1/($N$5/$N$19+$O$6/P$19),1/($O$5/$N$19+$O$6/P$19)))))) -> 0.04597455077 | R19: =IF($W$32>0,"",$Q$19*100-L27-L28) -> 1.597455077
A20: D | B20: 12 | C20: 0.1538461538 | D20: 1.538461538 | F20: 10 | G20: 3 | H20: 0.1
A21: E(TOL) | B21: =IF(E8="","",IF(E8<-10,-10,E8)) -> -10 | C21: =IF(B21="","",(B21-16)/($E$5-16)) -> 1 | D21: 10 | F21: 10 | G21: 3 | H21: 0.1
A22: F(Tbiv) | B22: =IF(E7="","",E7) -> -7 | C22: =IF(B22="","",(B22-16)/($E$5-16)) -> 0.8846153846 | D22: 8.846153846 | F22: 10 | G22: 3 | H22: 0.1
A25: Auxiliairy power consumptions | K25: Correction Factors
A26: Operating modes for heating only | F26: Operating modes for reversible units
B27: Hours | C27: Power input | D27: P * h | G27: Hours | H27: Power input | I27: P * h | K27: F1 | L27: 3 | M27: %
C28: (kW) | D28: (kWh) | H28: (kW) | I28: (kWh) | K28: F2 | L28: =IF($B$6="ground water-to-water",2,IF($B$6="ground/brine-to-water",1,0)) -> 0 | M28: % | V28: Chek Aux. | W28: =IF($B$7="heating only",IF(AND(C29>=0,ISNUMBER(C29)),"",1),"") ->  | X28: =IF($B$7="reversible",IF(AND(H29>=0,ISNUMBER(H29)),"",1),"") ->  | AA28: =IF(SUM(W28:W30)>0,"Complete Auxiliary data for heating only","") ->  | AB28: =IF(SUM(X28:X30)>0,"Complete Auxiliary data for reversible unit","") -> 
A29: Thermostat off | B29: 178 | C29: 1 | D29: =C29*B29 -> 178 | F29: Thermostat off | G29: 178 | I29: =H29*G29 -> 0 | W29: =IF($B$7="heating only",IF(AND(C30>=0,ISNUMBER(C30)),"",1),"") ->  | X29: =IF($B$7="reversible",IF(AND(H30>=0,ISNUMBER(H30)),"",1),"") -> 
A30: Stand by | B30: 0 | C30: 1 | D30: =C30*B30 -> 0 | F30: Stand by | G30: 0 | I30: =H30*G30 -> 0 | W30: =IF($B$7="heating only",IF(AND(C31>=0,ISNUMBER(C31)),"",1),"") ->  | X30: =IF($B$7="reversible",IF(AND(H31>=0,ISNUMBER(H31)),"",1),"") -> 
A31: Off mode | B31: 3672 | C31: 1 | D31: 3672 | F31: Off mode | G31: 0 | I31: 0
W32: =SUM(W6:Y30) -> 0
A33: Bin calculation
A34: Condition | B34: Bin | C34: Outdoor air temp. | D34: Hours | E34: Part load ratio | F34: Heat demand | G34: Heat load covered by the heat pump | J34: Heat load covered by auxiliary heater | K34: Annual heating demand | L34: Annual auxiliary heat | M34: Annual gas input with auxiliary heater | N34: Annual electricity input (auxiliary heater | O34: Annual heat produced by GAHP net | P34: Annual gas input for GAHP net | Q34: Annual electricity input for GAHP net
B35: j | C35: Tj | D35: hj | F35: Ph(tj) | H35: GUEh(Tj) | I35: AEFh(Tj) | J35: Paux(Tj) | K35: hj * Ph(Tj) | L35: hj * Paux(Tj) | O35: hj *[Ph(Tj)-Paux(Tj) | P35: hj *[Ph(Tj)-Paux(Tj) /GUEh(Tj)] | Q35: hj *[Ph(Tj)-Paux(Tj) /AEFh(Tj)] | Y35: P declared | Z35: P declared | AA35: GUE | AB35: GUE | AC35: aef | AD35: aef
B36: - | C36: °C | D36: h | E36: % | F36: kW | G36: kW | H36: - | I36: - | J36: kW | K36: kWh | L36: kWh | M36: kWh | N36: kWh | O36: kWh | P36: kWh | Q36: kWh | V36: =IF(A36="",0,1) -> 0 | W36: 0
A37: =IF(OR($E$7="",$E$8=""),"",IF(AND(C37=$B$21,C37=$E$7),"E/F",IF(C37=$B$21,"E",IF(C37=$E$7,"F","")))) -> E | B37: 21 | C37: -10 | D37: 1 | E37: =(C37-16)/($E$5-16) -> 1 | F37: =IF($W$32>0,"",$E$6*E37) -> 10 | G37: =IF($W$32>0,"",IF($C37<$E$8,0,IF($C37=$E$7,F$22,IF($C37=$E$8,F$21,IF($V37=1,$Y37,($C37-$W37)/($X37-$W37)*($Z37-$Y37)+$Y37))))) -> 10 | H37: =IF($W$32>0,"",IF($C37<$E$8,0,IF($C37=$E$7,G$22,IF($C37=$E$8,$G$21,IF($V37=1,$AA37,($C37-$W37)/($X37-$W37)*($AB37-$AA37)+$AA37))))) -> 3 | I37: =IF($W$32>0,"",IF($C37<$E$8,0,IF($C37=$E$7,H$22,IF($C37=$E$8,H$21,IF($V37=1,$AC37,($C37-$W37)/($X37-$W37)*($AD37-$AC37)+$AC37))))) -> 0.1 | J37: =IF($W$32>0,"",IF(C37<$E$8,F37,IF(C37<$E$7,F37-G37,0))) -> 0 | K37: =IF($W$32>0,"",F37*D37) -> 10 | L37: =IF($W$32>0,"",J37*D37) -> 0 | M37: =IF($W$32>0,"",IF(AND(C37<$E$8,$I$5=0),K37/$K$5,IF(AND(C37<$E$8,$I$5>0),K37/$I$5,IF(AND(C37<$E$7,$I$5=0),D37*(G37/H37+J37/$K$5),IF(AND(C37<$E$7,$I$5>0),D37*(G37/H37+J37/$I$5),K37/H37))))) -> 3.333333333 | N37: =IF($W$32>0,"",IF(AND(C37<$E$8,$I$8=""),K37*$K$8,IF(AND(C37<$E$8,$I$8>0),K37*$I$8,IF(AND(C37<$E$7,$I$8=""),D37*(G37/I37+J37*$K$8),IF(AND(C37<$E$7,$I$8>0),D37*(G37/I37+J37*$I$8),K37/I37))))) -> 100 | O37: =IF($W$32>0,"",IF(C37<$E$8,0,D37*(F37-J37))) -> 10 | P37: =IF($W$32>0,"",IF(C37<$E$8,0,D37*((F37-J37)/H37))) -> 3.333333333 | Q37: =IF($W$32>0,"",IF(C37<$E$8,0,D37*((F37-J37)/I37))) -> 100 | V37: 1 | W37: =IF(V37=0,W36,C37) -> -10 | X37: =IF(V37=0,X38,C37) -> -10 | Y37: =VLOOKUP(W37,$B$17:$H$22,5,FALSE) -> 10 | Z37: =VLOOKUP(X37,$B$17:$H$22,5,FALSE) -> 10 | AA37: =VLOOKUP(W37,$B$17:$H$22,6,FALSE) -> 3 | AB37: =VLOOKUP(X37,$B$17:$H$22,6,FALSE) -> 3 | AC37: =VLOOKUP(W37,$B$17:$H$22,7,FALSE) -> 0.1 | AD37: =VLOOKUP(X37,$B$17:$H$22,7,FALSE) -> 0.1
A38: =IF(OR($E$7="",$E$8=""),"",IF(AND(C38=$B$21,C38=$E$7),"E/F",IF(C38=$B$21,"E",IF(C38=$E$7,"F","")))) ->  | B38: 22 | C38: -9 | D38: 25 | E38: 0.9615384615 | F38: 9.615384615 | G38: 10 | H38: 3 | I38: 0.1 | J38: -0.3846153846 | K38: 240.3846154 | L38: -9.615384615 | M38: =IF($W$32>0,"",IF(AND(C38<$E$8,$I$5=0),K38/$K$5,IF(AND(C38<$E$8,$I$5>0),K38/$I$5,IF(AND(C38<$E$7,$I$5=0),D38*(G38/H38+J38/$K$5),IF(AND(C38<$E$7,$I$5>0),D38*(G38/H38+J38/$I$5),K38/H38))))) -> 71.31410256 | N38: =IF($W$32>0,"",IF(AND(C38<$E$8,$I$8=""),K38*$K$8,IF(AND(C38<$E$8,$I$8>0),K38*$I$8,IF(AND(C38<$E$7,$I$8=""),D38*(G38/I38+J38*$K$8),IF(AND(C38<$E$7,$I$8>0),D38*(G38/I38+J38*$I$8),K38/I38))))) -> 2499.807692 | O38: =IF($W$32>0,"",IF(C38<$E$8,0,D38*(F38-J38))) -> 250 | P38: =IF($W$32>0,"",IF(C38<$E$8,0,D38*((F38-J38)/H38))) -> 83.33333333 | Q38: =IF($W$32>0,"",IF(C38<$E$8,0,D38*((F38-J38)/I38))) -> 2500 | V38: 0 | W38: -10 | X38: -7 | Y38: 10 | Z38: 10 | AA38: 3 | AB38: 3 | AC38: 0.1 | AD38: 0.1
B39: 23 | C39: -8 | D39: 23 | E39: 0.9230769231 | F39: 9.230769231 | G39: 10 | H39: 3 | I39: 0.1 | J39: -0.7692307692 | K39: 212.3076923 | L39: -17.69230769 | M39: 54.55128205 | N39: 2299.646154 | O39: 230 | P39: 76.66666667 | Q39: 2300 | V39: 0 | W39: -10 | X39: -7 | Y39: 10 | Z39: 10 | AA39: 3 | AB39: 3 | AC39: 0.1 | AD39: 0.1
A40: =IF(AND(C40=$B$21,C40=$E$7,C40=-7),"A/E/F",IF(C40=$B$21,"A/E",IF(C40=$E$7,"A/F","A"))) -> A/F | B40: 24 | C40: -7 | D40: 24 | E40: 0.8846153846 | F40: 8.846153846 | G40: 10 | H40: 3 | I40: 0.1 | J40: 0 | K40: 212.3076923 | L40: 0 | M40: 70.76923077 | N40: 2123.076923 | O40: 212.3076923 | P40: 70.76923077 | Q40: 2123.076923 | V40: 1 | W40: -7 | X40: -7 | Y40: 10 | Z40: 10 | AA40: 3 | AB40: 3 | AC40: 0.1 | AD40: 0.1
A41: =IF(OR($E$7="",$E$8=""),"",IF(AND(C41=$B$21,C41=$E$7),"E/F",IF(C41=$B$21,"E",IF(C41=$E$7,"F","")))) ->  | B41: 25 | C41: -6 | D41: 27 | E41: 0.8461538462 | F41: 8.461538462 | G41: 10 | H41: 3 | I41: 0.1 | J41: 0 | K41: 228.4615385 | L41: 0 | M41: 76.15384615 | N41: 2284.615385 | O41: 228.4615385 | P41: 76.15384615 | Q41: 2284.615385 | V41: 0 | W41: -7 | X41: 2 | Y41: 10 | Z41: 10 | AA41: 3 | AB41: 3 | AC41: 0.1 | AD41: 0.1
B42: 26 | C42: -5 | D42: 68 | E42: 0.8076923077 | F42: 8.076923077 | G42: 10 | H42: 3 | I42: 0.1 | J42: 0 | K42: 549.2307692 | L42: 0 | M42: 183.0769231 | N42: 5492.307692 | O42: 549.2307692 | P42: 183.0769231 | Q42: 5492.307692 | V42: 0 | W42: -7 | X42: 2 | Y42: 10 | Z42: 10 | AA42: 3 | AB42: 3 | AC42: 0.1 | AD42: 0.1
B43: 27 | C43: -4 | D43: 91 | E43: 0.7692307692 | F43: 7.692307692 | G43: 10 | H43: 3 | I43: 0.1 | J43: 0 | K43: 700 | L43: 0 | M43: 233.3333333 | N43: 7000 | O43: 700 | P43: 233.3333333 | Q43: 7000 | V43: 0 | W43: -7 | X43: 2 | Y43: 10 | Z43: 10 | AA43: 3 | AB43: 3 | AC43: 0.1 | AD43: 0.1
B44: 28 | C44: -3 | D44: 89 | E44: 0.7307692308 | F44: 7.307692308 | G44: 10 | H44: 3 | I44: 0.1 | J44: 0 | K44: 650.3846154 | L44: 0 | M44: 216.7948718 | N44: 6503.846154 | O44: 650.3846154 | P44: 216.7948718 | Q44: 6503.846154 | V44: 0 | W44: -7 | X44: 2 | Y44: 10 | Z44: 10 | AA44: 3 | AB44: 3 | AC44: 0.1 | AD44: 0.1
B45: 29 | C45: -2 | D45: 165 | E45: 0.6923076923 | F45: 6.923076923 | G45: 10 | H45: 3 | I45: 0.1 | J45: 0 | K45: 1142.307692 | L45: 0 | M45: 380.7692308 | N45: 11423.07692 | O45: 1142.307692 | P45: 380.7692308 | Q45: 11423.07692 | V45: 0 | W45: -7 | X45: 2 | Y45: 10 | Z45: 10 | AA45: 3 | AB45: 3 | AC45: 0.1 | AD45: 0.1
B46: 30 | C46: -1 | D46: 173 | E46: 0.6538461538 | F46: 6.538461538 | G46: 10 | H46: 3 | I46: 0.1 | J46: 0 | K46: 1131.153846 | L46: 0 | M46: 377.0512821 | N46: 11311.53846 | O46: 1131.153846 | P46: 377.0512821 | Q46: 11311.53846 | V46: 0 | W46: -7 | X46: 2 | Y46: 10 | Z46: 10 | AA46: 3 | AB46: 3 | AC46: 0.1 | AD46: 0.1
B47: 31 | C47: 0 | D47: 240 | E47: 0.6153846154 | F47: 6.153846154 | G47: 10 | H47: 3 | I47: 0.1 | J47: 0 | K47: 1476.923077 | L47: 0 | M47: 492.3076923 | N47: 14769.23077 | O47: 1476.923077 | P47: 492.3076923 | Q47: 14769.23077 | V47: 0 | W47: -7 | X47: 2 | Y47: 10 | Z47: 10 | AA47: 3 | AB47: 3 | AC47: 0.1 | AD47: 0.1
B48: 32 | C48: 1 | D48: 280 | E48: 0.5769230769 | F48: 5.769230769 | G48: 10 | H48: 3 | I48: 0.1 | J48: 0 | K48: 1615.384615 | L48: 0 | M48: 538.4615385 | N48: 16153.84615 | O48: 1615.384615 | P48: 538.4615385 | Q48: 16153.84615 | V48: 0 | W48: -7 | X48: 2 | Y48: 10 | Z48: 10 | AA48: 3 | AB48: 3 | AC48: 0.1 | AD48: 0.1
A49: =IF(AND(C49=$B$21,C49=$E$7,C49=2),"B/E/F",IF(C49=$B$21,"B/E",IF(C49=$E$7,"B/F","B"))) -> B | B49: 33 | C49: 2 | D49: 320 | E49: 0.5384615385 | F49: 5.384615385 | G49: 10 | H49: 3 | I49: 0.1 | J49: 0 | K49: 1723.076923 | L49: 0 | M49: 574.3589744 | N49: 17230.76923 | O49: 1723.076923 | P49: 574.3589744 | Q49: 17230.76923 | V49: 1 | W49: 2 | X49: 2 | Y49: 10 | Z49: 10 | AA49: 3 | AB49: 3 | AC49: 0.1 | AD49: 0.1
B50: 34 | C50: 3 | D50: 357 | E50: 0.5 | F50: 5 | G50: 10 | H50: 3 | I50: 0.1 | J50: 0 | K50: 1785 | L50: 0 | M50: 595 | N50: 17850 | O50: 1785 | P50: 595 | Q50: 17850 | V50: 0 | W50: 2 | X50: 7 | Y50: 10 | Z50: 10 | AA50: 3 | AB50: 3 | AC50: 0.1 | AD50: 0.1
B51: 35 | C51: 4 | D51: 356 | E51: 0.4615384615 | F51: 4.615384615 | G51: 10 | H51: 3 | I51: 0.1 | J51: 0 | K51: 1643.076923 | L51: 0 | M51: 547.6923077 | N51: 16430.76923 | O51: 1643.076923 | P51: 547.6923077 | Q51: 16430.76923 | V51: 0 | W51: 2 | X51: 7 | Y51: 10 | Z51: 10 | AA51: 3 | AB51: 3 | AC51: 0.1 | AD51: 0.1
B52: 36 | C52: 5 | D52: 303 | E52: 0.4230769231 | F52: 4.230769231 | G52: 10 | H52: 3 | I52: 0.1 | J52: 0 | K52: 1281.923077 | L52: 0 | M52: 427.3076923 | N52: 12819.23077 | O52: 1281.923077 | P52: 427.3076923 | Q52: 12819.23077 | V52: 0 | W52: 2 | X52: 7 | Y52: 10 | Z52: 10 | AA52: 3 | AB52: 3 | AC52: 0.1 | AD52: 0.1
B53: 37 | C53: 6 | D53: 330 | E53: 0.3846153846 | F53: 3.846153846 | G53: 10 | H53: 3 | I53: 0.1 | J53: 0 | K53: 1269.230769 | L53: 0 | M53: 423.0769231 | N53: 12692.30769 | O53: 1269.230769 | P53: 423.0769231 | Q53: 12692.30769 | V53: 0 | W53: 2 | X53: 7 | Y53: 10 | Z53: 10 | AA53: 3 | AB53: 3 | AC53: 0.1 | AD53: 0.1
A54: C | B54: 38 | C54: 7 | D54: 326 | E54: 0.3461538462 | F54: 3.461538462 | G54: 10 | H54: 3 | I54: 0.1 | J54: 0 | K54: 1128.461538 | L54: 0 | M54: 376.1538462 | N54: 11284.61538 | O54: 1128.461538 | P54: 376.1538462 | Q54: 11284.61538 | V54: 1 | W54: 7 | X54: 7 | Y54: 10 | Z54: 10 | AA54: 3 | AB54: 3 | AC54: 0.1 | AD54: 0.1
B55: 39 | C55: 8 | D55: 348 | E55: 0.3076923077 | F55: 3.076923077 | G55: 10 | H55: 3 | I55: 0.1 | J55: 0 | K55: 1070.769231 | L55: 0 | M55: 356.9230769 | N55: 10707.69231 | O55: 1070.769231 | P55: 356.9230769 | Q55: 10707.69231 | V55: 0 | W55: 7 | X55: 12 | Y55: 10 | Z55: 10 | AA55: 3 | AB55: 3 | AC55: 0.1 | AD55: 0.1
B56: 40 | C56: 9 | D56: 335 | E56: 0.2692307692 | F56: 2.692307692 | G56: 10 | H56: 3 | I56: 0.1 | J56: 0 | K56: 901.9230769 | L56: 0 | M56: 300.6410256 | N56: 9019.230769 | O56: 901.9230769 | P56: 300.6410256 | Q56: 9019.230769 | V56: 0 | W56: 7 | X56: 12 | Y56: 10 | Z56: 10 | AA56: 3 | AB56: 3 | AC56: 0.1 | AD56: 0.1
B57: 41 | C57: 10 | D57: 315 | E57: 0.2307692308 | F57: 2.307692308 | G57: 10 | H57: 3 | I57: 0.1 | J57: 0 | K57: 726.9230769 | L57: 0 | M57: 242.3076923 | N57: 7269.230769 | O57: 726.9230769 | P57: 242.3076923 | Q57: 7269.230769 | V57: 0 | W57: 7 | X57: 12 | Y57: 10 | Z57: 10 | AA57: 3 | AB57: 3 | AC57: 0.1 | AD57: 0.1
B58: 42 | C58: 11 | D58: 215 | E58: 0.1923076923 | F58: 1.923076923 | G58: 10 | H58: 3 | I58: 0.1 | J58: 0 | K58: 413.4615385 | L58: 0 | M58: 137.8205128 | N58: 4134.615385 | O58: 413.4615385 | P58: 137.8205128 | Q58: 4134.615385 | V58: 0 | W58: 7 | X58: 12 | Y58: 10 | Z58: 10 | AA58: 3 | AB58: 3 | AC58: 0.1 | AD58: 0.1
A59: D | B59: 43 | C59: 12 | D59: 169 | E59: 0.1538461538 | F59: 1.538461538 | G59: 10 | H59: 3 | I59: 0.1 | J59: 0 | K59: 260 | L59: 0 | M59: 86.66666667 | N59: 2600 | O59: 260 | P59: 86.66666667 | Q59: 2600 | V59: 1 | W59: 12 | X59: 12 | Y59: 10 | Z59: 10 | AA59: 3 | AB59: 3 | AC59: 0.1 | AD59: 0.1
B60: 44 | C60: 13 | D60: 151 | E60: 0.1153846154 | F60: 1.153846154 | G60: 10 | H60: 3 | I60: 0.1 | J60: 0 | K60: 174.2307692 | L60: 0 | M60: 58.07692308 | N60: 1742.307692 | O60: 174.2307692 | P60: 58.07692308 | Q60: 1742.307692 | V60: 0 | W60: 7 | X60: 12 | Y60: 10 | Z60: 10 | AA60: 3 | AB60: 3 | AC60: 0.1 | AD60: 0.1
B61: 45 | C61: 14 | D61: 105 | E61: 0.07692307692 | F61: 0.7692307692 | G61: 10 | H61: 3 | I61: 0.1 | J61: 0 | K61: 80.76923077 | L61: 0 | M61: 26.92307692 | N61: 807.6923077 | O61: 80.76923077 | P61: 26.92307692 | Q61: 807.6923077 | V61: 0 | W61: =IF(V61=0,W60,C61) -> 7 | X61: 12 | Y61: 10 | Z61: 10 | AA61: 3 | AB61: 3 | AC61: 0.1 | AD61: 0.1
B62: 46 | C62: 15 | D62: 74 | E62: 0.03846153846 | F62: 0.3846153846 | G62: 10 | H62: 3 | I62: 0.1 | J62: 0 | K62: 28.46153846 | L62: 0 | M62: 9.487179487 | N62: 284.6153846 | O62: 28.46153846 | P62: 9.487179487 | Q62: 284.6153846 | V62: 0 | W62: =IF(V62=0,W61,C62) -> 7 | X62: 12 | Y62: 10 | Z62: 10 | AA62: 3 | AB62: 3 | AC62: 0.1 | AD62: 0.1
D63: =SUM(D36:D62) -> 4910 | K63: =SUM(K37:K62) -> 20656.15385 | L63: =SUM(L37:L62) -> -27.30769231 | M63: =SUM(M37:M62) -> 6860.352564 | N63: =SUM(N37:N62) -> 206834.0692 | O63: =SUM(O37:O62) -> 20683.46154 | P63: =SUM(P37:P62) -> 6894.487179 | Q63: 206834.6154

Sheet SGUEh water_based HP colder
A1: Calculation of energy efficiency - HEATING - Average climate
H2: Backup heater for bivalent units
A3: Product reference | D3: Reference conditions | H3: Backup heater data - auxiliary gas boiler | M3: Primary energy factors
A4: Manufacturer | D4: Climate | E4: average | K4: Default values | N4: Kw/kW | O4: Default values
A5: Product reference | D5: Tdesignh | E5: -22 | F5: °C | H5: ηAux (GCV) | I5: =0.85*I6+0.15*I7 -> 0 | J5: % | K5: 0.8 | M5: PrimGAS (GCV) | O5: 1
A6: Type of heat pump | B6: outdoor air-to-water | D6: Pdesignh | F6: kW | H6: η30% (GCV) | J6: % | M6: Primelec | O6: 2.5 | V6: chek Pdes | W6: =IF(OR(E6<0,E6="",NOT(ISNUMBER(E6))),1,"") -> 1 | AA6: =IF(E6="","Pdesign Missing","") -> Pdesign Missing | AB6: =IF(E6<0,"Pdesign Negative","") ->  | AC6: =IF(NOT(ISNUMBER(E6)),"Pdesign is not a number","") -> Pdesign is not a number
A7: Operating mode | B7: reversible | D7: Tbiv | F7: °C | H7: η100% (GCV) | J7: % | V7: Chek Tbiv | W7: =IF(E7="",1,"") -> 1 | X7: =IF(E7>2,1,"") ->  | Y7: =IF(E7<E5,1,"") ->  | AA7: =IF(E7="","Tbiv Missing","") -> Tbiv Missing | AB7: =IF(E7>2,"Tbiv > -7°C","") ->  | AC7: =IF(E7<E5,"Tbiv < Tdesign","") -> 
A8: Temperature application | B8: 55°C | D8: TOL | F8: °C | H8: eAux | J8: kW | K8: 0.02 | M8: Chek list: | V8: Chek TOL | W8: =IF(E8="",1,"") -> 1 | X8: =IF(E8>-7,1,"") -> 1 | Y8: =IF(E7<E8,1,"") ->  | AA8: =IF(E8="","TOL Missing","") -> TOL Missing | AB8: =IF(E8="","",IF(E8>-7,"TOL > -7°C","")) ->  | AC8: =IF(E7<E8," TOL>Tbiv ","") -> 
A9: Water flow | B9: fixed | D9: Heh | E9: 2465 | F9: hours | M9: =AA6&" "&AB6&" "&AC6 -> Pdesign Missing Pdesign is not a number
A10: Water outlet temperature | B10: fixed | D10: Qrefh | E10: =IF($W$33>0,"",$E$9*$E$6) ->  | F10: kWh | M10: =AA7 -> Tbiv Missing
A11: Capacity control | B11: fixed | M11: TOL Missing | V11: η30% (GCV) | W11: =IF(OR(I6<0,AND(I6<>"",NOT(ISNUMBER(I6)))),1,"") ->  | AA11: =IF(W11=1,"Incorrect "&V11,"") -> 
A12: Calorific value of test gas | B12: GCV | M12: =AA17 -> Complete performance data with correct values | V12: η100% (GCV) | W12: =IF(OR(I7<0,AND(I7<>"",NOT(ISNUMBER(I7)))),1,"") ->  | AA12: =IF(W12=1,"Incorrect "&V12,"") -> 
M13: =AA28&AB28 ->  | V13: eAux | W13: =IF(OR(I8<0,AND(I8<>"",NOT(ISNUMBER(I8)))),1,"") -> 
M14: =AA11&" "&AA12&" "&AA13 ->  | V14: PrimGAS (GCV) | W14: =IF(OR(N5<0,AND(N5<>"",NOT(ISNUMBER(N5)))),1,"") -> 
A15: Performance data | M15: =AA14&" "&AA15 ->  | V15: Primelec | W15: =IF(OR(N6<0,AND(N6<>"",NOT(ISNUMBER(N6)))),1,"") -> 
A16: Condition | B16: Outdoor air T°C | C16: Part load ratio (%) | D16: Part Load (kW) | E16: Inlet / outlet water temperatures for testing | F16: Declared Capacity (kW) | G16: Declared GUEd | H16: Declared AEFd
A17: O | B17: -15 | C17: =(B17-16)/($E$5-16) -> 0.8157894737 | D17: =IF($W$33>0,"",$E$6*C17) ->  | K17: Energy Efficiency | V17: Chek dati | W17: =IF(AND(F17>0,ISNUMBER(F17)),"",1) -> 1 | X17: 1 | Y17: 1 | AA17: =IF(SUM(W17:Y23)>0,"Complete performance data with correct values","") -> Complete performance data with correct values
A18: A | B18: -7 | C18: =(B18-16)/($E$5-16) -> 0.6052631579 | K18: SGUEhnet | L18: SAEFhnet | M18: SPERhnet | N18: SGUEh | O18: SAEFon | P18: SAEF | Q18: SPERh | R18: ηs | W18: 1 | X18: 1 | Y18: 1
A19: B | B19: 2 | C19: =(B19-16)/($E$5-16) -> 0.3684210526 | K19: =IF($W$33>0,"",O75/P75) ->  | L19: =IF($W$33>0,"",O75/Q75) ->  | M19: =IF($W$33>0,"",IF(AND($N$5<>0,$N$6<>0),1/($N$5/$K$19+$N$6/L$19),IF(AND($N$5="",$N$6<>0),1/($O$5/$K$19+$N$6/L$19),IF(AND($N$5<>0,$N$6=""),1/($N$5/$K$19+$O$6/L$19),1/($O$5/$K$19+$O$6/L$19))))) ->  | N19: =IF($W$33>0,"",K75/M75) ->  | O19: =IF($W$33>0,"",K75/N75) ->  | P19: =IF($W$33>0,"",IF($B$7="heating only",E10/(E10/O19+D29+D30+D31),E10/(E10/O19+I29+I30+I31))) ->  | Q19: =IF($W$33>0,"",IF(AND($N$5<>0,$N$6<>0),1/($N$5/$N$19+$N$6/P$19),(IF(AND($N$5="",$N$6<>0),1/($O$5/$N$19+$N$6/P$19),IF(AND($N$5<>0,$N$6=""),1/($N$5/$N$19+$O$6/P$19),1/($O$5/$N$19+$O$6/P$19)))))) ->  | R19: =IF($W$33>0,"",$Q$19*100-L27-L28) ->  | W19: 1 | X19: 1 | Y19: 1
A20: C | B20: 7 | C20: 0.2368421053 | W20: 1 | X20: 1 | Y20: 1
A21: D | B21: 12 | C21: 0.1052631579 | W21: 1 | X21: 1 | Y21: 1
A22: E(TOL) | B22: =IF(E8="","",IF(E8<-22,-22,E8)) ->  | C22: =IF(B22="","",(B22-16)/($E$5-16)) ->  | W22: 1 | X22: 1 | Y22: 1
A23: F(Tbiv) | B23: =IF(E7="","",E7) ->  | C23: =IF(B23="","",(B23-16)/($E$5-16)) ->  | W23: 1 | X23: 1 | Y23: 1
A25: Auxiliairy power consumptions | K25: Correction Factors
A26: Operating modes for heating only | F26: Operating modes for reversible units
B27: Hours | C27: Power input | D27: P * h | G27: Hours | H27: Power input | I27: P * h | K27: F1 | L27: 3 | M27: %
C28: (kW) | D28: (kWh) | H28: (kW) | I28: (kWh) | K28: F2 | L28: =IF($B$6="ground water-to-water",2,IF($B$6="ground/brine-to-water",1,0)) -> 0 | M28: %
A29: Thermostat off | B29: 106 | D29: =C29*B29 -> 0 | F29: Thermostat off | G29: 106 | I29: =H29*G29 -> 0 | V29: Chek Aux. | W29: =IF($B$7="heating only",IF(AND(C29>=0,ISNUMBER(C29)),"",1),"") ->  | X29: =IF($B$7="reversible",IF(AND(H29>=0,ISNUMBER(H29)),"",1),"") -> 1 | AA29: =IF(SUM(W29:W31)>0,"Complete Auxiliary data for heating only","") ->  | AB29: =IF(SUM(X29:X31)>0,"Complete Auxiliary data for reversible unit","") -> Complete Auxiliary data for reversible unit
A30: Stand by | B30: 0 | D30: =C30*B30 -> 0 | F30: Stand by | G30: 0 | I30: =H30*G30 -> 0 | W30: =IF($B$7="heating only",IF(AND(C30>=0,ISNUMBER(C30)),"",1),"") ->  | X30: =IF($B$7="reversible",IF(AND(H30>=0,ISNUMBER(H30)),"",1),"") -> 1
A31: Off mode | B31: 2208 | D31: 0 | F31: Off mode | G31: 0 | I31: 0 | X31: 1
A33: Bin calculation | W33: =SUM(W6:Y31) -> 28
A34: Condition | B34: Bin | C34: Outdoor air temp. | D34: Hours | E34: Part load ratio | F34: Heat demand | G34: Heat load covered by the heat pump | J34: Heat load covered by auxiliary heater | K34: Annual heating demand | L34: Annual auxiliary heat | M34: Annual gas input with auxiliary heater | N34: Annual electricity input (auxiliary heater | O34: Annual heat produced by GAHP net | P34: Annual gas input for GAHP net | Q34: Annual electricity input for GAHP net
B35: j | C35: Tj | D35: hj | F35: Ph(tj) | H35: GUEh(Tj) | I35: AEFh(Tj) | J35: Paux(Tj) | K35: hj * Ph(Tj) | L35: hj * Paux(Tj) | O35: hj *[Ph(Tj)-Paux(Tj) | P35: hj *[Ph(Tj)-Paux(Tj) /GUEh(Tj)] | Q35: hj *[Ph(Tj)-Paux(Tj) /AEFh(Tj)] | Y35: P declared | Z35: P declared | AA35: GUE | AB35: GUE | AC35: aef | AD35: aef
B36: - | C36: °C | D36: h | E36: % | F36: kW | G36: kW | H36: - | I36: - | J36: kW | K36: kWh | L36: kWh | M36: kWh | N36: kWh | O36: kWh | P36: kWh | Q36: kWh | V36: =IF(A36="",0,1) -> 0 | W36: 0
A37: =IF(OR($E$7="",$E$8=""),"",IF(AND(C37=$B$22,C37=$E$7),"E/F",IF(C37=$B$22,"E",IF(C37=$E$7,"F","")))) ->  | B37: 9 | C37: -22 | D37: 1 | E37: =(C37-16)/($E$5-16) -> 1 | F37: =IF($W$33>0,"",$E$6*E37) ->  | G37: =IF($W$33>0,"",IF($C37<$E$8,0,IF($C37=$E$7,F$23,IF($C37=$E$8,F$22,IF($V37=1,$Y37,($C37-$W37)/($X37-$W37)*($Z37-$Y37)+$Y37))))) ->  | H37: =IF($W$33>0,"",IF($C37<$E$8,0,IF($C37=$E$7,G$23,IF($C37=$E$8,$G$22,IF($V37=1,$AA37,($C37-$W37)/($X37-$W37)*($AB37-$AA37)+$AA37))))) ->  | I37: =IF($W$33>0,"",IF($C37<$E$8,0,IF($C37=$E$7,H$23,IF($C37=$E$8,H$22,IF($V37=1,$AC37,($C37-$W37)/($X37-$W37)*($AD37-$AC37)+$AC37))))) ->  | J37: =IF($W$33>0,"",IF(C37<$E$8,F37,IF(C37<$E$7,F37-G37,0))) ->  | K37: =IF($W$33>0,"",F37*D37) ->  | L37: =IF($W$33>0,"",J37*D37) ->  | M37: =IF($W$33>0,"",IF(AND(C37<$E$8,$I$5=0),K37/$K$5,IF(AND(C37<$E$8,$I$5>0),K37/$I$5,IF(AND(C37<$E$7,$I$5=0),D37*(G37/H37+J37/$K$5),IF(AND(C37<$E$7,$I$5>0),D37*(G37/H37+J37/$I$5),K37/H37))))) ->  | N37: =IF($W$33>0,"",IF(AND(C37<$E$8,$I$8=""),K37*$K$8,IF(AND(C37<$E$8,$I$8>0),K37*$I$8,IF(AND(C37<$E$7,$I$8=""),D37*(G37/I37+J37*$K$8),IF(AND(C37<$E$7,$I$8>0),D37*(G37/I37+J37*$I$8),K37/I37))))) ->  | O37: =IF($W$33>0,"",IF(C37<$E$8,0,D37*(F37-J37))) ->  | P37: =IF($W$33>0,"",IF(C37<$E$8,0,D37*((F37-J37)/H37))) ->  | Q37: =IF($W$33>0,"",IF(C37<$E$8,0,D37*((F37-J37)/I37))) ->  | V37: 0 | W37: =IF(V37=0,W36,C37) -> 0 | X37: =IF(V37=0,X38,C37) -> -15 | Y37: =VLOOKUP(W37,$B$17:$H$23,5,FALSE) ->  | Z37: =VLOOKUP(X37,$B$17:$H$23,5,FALSE) -> 0 | AA37: =VLOOKUP(W37,$B$17:$H$23,6,FALSE) ->  | AB37: =VLOOKUP(X37,$B$17:$H$23,6,FALSE) -> 0 | AC37: =VLOOKUP(W37,$B$17:$H$23,7,FALSE) ->  | AD37: =VLOOKUP(X37,$B$17:$H$23,7,FALSE) -> 0
A38: =IF(OR($E$7="",$E$8=""),"",IF(AND(C38=$B$22,C38=$E$7),"E/F",IF(C38=$B$22,"E",IF(C38=$E$7,"F","")))) ->  | B38: 10 | C38: -21 | D38: 6 | E38: 0.9736842105 | N38: =IF($W$33>0,"",IF(AND(C38<$E$8,$I$8=""),K38*$K$8,IF(AND(C38<$E$8,$I$8>0),K38*$I$8,IF(AND(C38<$E$7,$I$8=""),D38*(G38/I38+J38*$K$8),IF(AND(C38<$E$7,$I$8>0),D38*(G38/I38+J38*$I$8),K38/I38))))) ->  | V38: 0 | W38: 0 | X38: -15 | Z38: 0 | AB38: 0 | AD38: 0
B39: 11 | C39: -20 | D39: 13 | E39: 0.9473684211 | V39: 0 | W39: 0 | X39: -15 | Z39: 0 | AB39: 0 | AD39: 0
B40: 12 | C40: -19 | D40: 17 | E40: 0.9210526316 | V40: 0 | W40: 0 | X40: -15 | Z40: 0 | AB40: 0 | AD40: 0
B41: 13 | C41: -18 | D41: 19 | E41: 0.8947368421 | V41: 0 | W41: 0 | X41: -15 | Z41: 0 | AB41: 0 | AD41: 0
B42: 14 | C42: -17 | D42: 26 | E42: 0.8684210526 | V42: 0 | W42: 0 | X42: -15 | Z42: 0 | AB42: 0 | AD42: 0
B43: 15 | C43: -16 | D43: 39 | E43: 0.8421052632 | V43: 0 | W43: 0 | X43: -15 | Z43: 0 | AB43: 0 | AD43: 0
A44: =IF(AND(C44=$B$22,C44=$E$7,C44=-15),"O/E/F",IF(C44=$B$22,"O/E",IF(C44=$E$7,"O/F","O"))) -> O | B44: 16 | C44: -15 | D44: 41 | E44: 0.8157894737 | V44: 1 | W44: -15 | X44: -15 | Y44: 0 | Z44: 0 | AA44: 0 | AB44: 0 | AC44: 0 | AD44: 0
A45: =IF(OR($E$7="",$E$8=""),"",IF(AND(C45=$B$22,C45=$E$7),"E/F",IF(C45=$B$22,"E",IF(C45=$E$7,"F","")))) ->  | B45: 17 | C45: -14 | D45: 35 | E45: 0.7894736842 | V45: 0 | W45: -15 | X45: -7 | Y45: 0 | Z45: 0 | AA45: 0 | AB45: 0 | AC45: 0 | AD45: 0
A46: =IF(OR($E$7="",$E$8=""),"",IF(AND(C46=$B$22,C46=$E$7),"E/F",IF(C46=$B$22,"E",IF(C46=$E$7,"F","")))) ->  | B46: 18 | C46: -13 | D46: 52 | E46: 0.7631578947 | V46: 0 | W46: -15 | X46: -7 | Y46: 0 | Z46: 0 | AA46: 0 | AB46: 0 | AC46: 0 | AD46: 0
B47: 19 | C47: -12 | D47: 37 | E47: 0.7368421053 | V47: 0 | W47: -15 | X47: -7 | Y47: 0 | Z47: 0 | AA47: 0 | AB47: 0 | AC47: 0 | AD47: 0
B48: 20 | C48: -11 | D48: 41 | E48: 0.7105263158 | V48: 0 | W48: -15 | X48: -7 | Y48: 0 | Z48: 0 | AA48: 0 | AB48: 0 | AC48: 0 | AD48: 0
B49: 21 | C49: -10 | D49: 43 | E49: =(C49-16)/($E$5-16) -> 0.6842105263 | V49: 0 | W49: -15 | X49: -7 | Y49: 0 | Z49: 0 | AA49: 0 | AB49: 0 | AC49: 0 | AD49: 0
B50: 22 | C50: -9 | D50: 54 | E50: =(C50-16)/($E$5-16) -> 0.6578947368 | V50: 0 | W50: -15 | X50: -7 | Y50: 0 | Z50: 0 | AA50: 0 | AB50: 0 | AC50: 0 | AD50: 0
B51: 23 | C51: -8 | D51: 90 | E51: 0.6315789474 | V51: 0 | W51: -15 | X51: -7 | Y51: 0 | Z51: 0 | AA51: 0 | AB51: 0 | AC51: 0 | AD51: 0
A52: =IF(AND(C52=$B$22,C52=$E$7,C52=-7),"A/E/F",IF(C52=$B$22,"A/E",IF(C52=$E$7,"A/F","A"))) -> A | B52: 24 | C52: -7 | D52: 125 | E52: 0.6052631579 | V52: 1 | W52: -7 | X52: -7 | Y52: 0 | Z52: 0 | AA52: 0 | AB52: 0 | AC52: 0 | AD52: 0
B53: 25 | C53: -6 | D53: 169 | E53: 0.5789473684 | V53: 0 | W53: -7 | X53: 2 | Y53: 0 | Z53: 0 | AA53: 0 | AB53: 0 | AC53: 0 | AD53: 0
B54: 26 | C54: -5 | D54: 195 | E54: 0.5526315789 | V54: 0 | W54: -7 | X54: 2 | Y54: 0 | Z54: 0 | AA54: 0 | AB54: 0 | AC54: 0 | AD54: 0
B55: 27 | C55: -4 | D55: 278 | E55: 0.5263157895 | V55: 0 | W55: -7 | X55: 2 | Y55: 0 | Z55: 0 | AA55: 0 | AB55: 0 | AC55: 0 | AD55: 0
B56: 28 | C56: -3 | D56: 306 | E56: 0.5 | V56: 0 | W56: -7 | X56: 2 | Y56: 0 | Z56: 0 | AA56: 0 | AB56: 0 | AC56: 0 | AD56: 0
B57: 29 | C57: -2 | D57: 454 | E57: 0.4736842105 | V57: 0 | W57: -7 | X57: 2 | Y57: 0 | Z57: 0 | AA57: 0 | AB57: 0 | AC57: 0 | AD57: 0
B58: 30 | C58: -1 | D58: 385 | E58: 0.4473684211 | V58: 0 | W58: -7 | X58: 2 | Y58: 0 | Z58: 0 | AA58: 0 | AB58: 0 | AC58: 0 | AD58: 0
B59: 31 | C59: 0 | D59: 490 | E59: 0.4210526316 | V59: 0 | W59: -7 | X59: 2 | Y59: 0 | Z59: 0 | AA59: 0 | AB59: 0 | AC59: 0 | AD59: 0
B60: 32 | C60: 1 | D60: 533 | E60: 0.3947368421 | V60: 0 | W60: 7 | X60: 2 | Y60: 0 | Z60: 0 | AA60: 0 | AB60: 0 | AC60: 0 | AD60: 0
A61: B | B61: 33 | C61: 2 | D61: 380 | E61: 0.3684210526 | V61: 1 | W61: =IF(V61=0,W60,C61) -> 2 | X61: 2 | Y61: 0 | Z61: 0 | AA61: 0 | AB61: 0 | AC61: 0 | AD61: 0
B62: 34 | C62: 3 | D62: 228 | E62: 0.3421052632 | V62: 0 | W62: 2 | X62: 7 | Y62: 0 | Z62: 0 | AA62: 0 | AB62: 0 | AC62: 0 | AD62: 0
B63: 35 | C63: 4 | D63: 261 | E63: 0.3157894737 | V63: 0 | W63: 2 | X63: 7 | Y63: 0 | Z63: 0 | AA63: 0 | AB63: 0 | AC63: 0 | AD63: 0
B64: 36 | C64: 5 | D64: 279 | E64: 0.2894736842 | V64: 0 | W64: 2 | X64: 7 | Y64: 0 | Z64: 0 | AA64: 0 | AB64: 0 | AC64: 0 | AD64: 0
B65: 37 | C65: 6 | D65: 229 | E65: 0.2631578947 | V65: 0 | W65: 2 | X65: 7 | Y65: 0 | Z65: 0 | AA65: 0 | AB65: 0 | AC65: 0 | AD65: 0
A66: C | B66: 38 | C66: 7 | D66: 269 | E66: 0.2368421053 | V66: 1 | W66: 7 | X66: 7 | Y66: 0 | Z66: 0 | AA66: 0 | AB66: 0 | AC66: 0 | AD66: 0
B67: 39 | C67: 8 | D67: 233 | E67: 0.2105263158 | V67: 0 | W67: 7 | X67: 12 | Y67: 0 | Z67: 0 | AA67: 0 | AB67: 0 | AC67: 0 | AD67: 0
B68: 40 | C68: 9 | D68: 230 | E68: 0.1842105263 | V68: 0 | W68: 7 | X68: 12 | Y68: 0 | Z68: 0 | AA68: 0 | AB68: 0 | AC68: 0 | AD68: 0
B69: 41 | C69: 10 | D69: 243 | E69: 0.1578947368 | V69: 0 | W69: 7 | X69: 12 | Y69: 0 | Z69: 0 | AA69: 0 | AB69: 0 | AC69: 0 | AD69: 0
B70: 42 | C70: 11 | D70: 191 | E70: 0.1315789474 | V70: 0 | W70: 7 | X70: 12 | Y70: 0 | Z70: 0 | AA70: 0 | AB70: 0 | AC70: 0 | AD70: 0
A71: D | B71: 43 | C71: 12 | D71: 146 | E71: 0.1052631579 | V71: 1 | W71: 12 | X71: 12 | Y71: 0 | Z71: 0 | AA71: 0 | AB71: 0 | AC71: 0 | AD71: 0
B72: 44 | C72: 13 | D72: 150 | E72: 0.07894736842 | V72: 0 | W72: 7 | X72: 12 | Y72: 0 | Z72: 0 | AA72: 0 | AB72: 0 | AC72: 0 | AD72: 0
B73: 45 | C73: 14 | D73: 97 | E73: 0.05263157895 | V73: 0 | W73: =IF(V73=0,W72,C73) -> 7 | X73: 12 | Y73: 0 | Z73: 0 | AA73: 0 | AB73: 0 | AC73: 0 | AD73: 0
B74: 46 | C74: 15 | D74: 61 | E74: 0.02631578947 | V74: 0 | W74: =IF(V74=0,W73,C74) -> 7 | X74: 12 | Y74: 0 | Z74: 0 | AA74: 0 | AB74: 0 | AC74: 0 | AD74: 0
D75: =SUM(D37:D74) -> 6446 | K75: =SUM(K49:K74) -> 0 | L75: =SUM(L49:L74) -> 0 | M75: =SUM(M49:M74) -> 0 | N75: =SUM(N49:N74) -> 0 | O75: =SUM(O49:O74) -> 0 | P75: =SUM(P49:P74) -> 0 | Q75: 0

Sheet SGUEh water_based HP warmer
A1: Calculation of energy efficiency - HEATING - Average climate
H2: Backup heater for bivalent units
A3: Product reference | D3: Reference conditions | H3: Backup heater data - auxiliary gas boiler | M3: Primary energy factors
A4: Manufacturer | D4: Climate | E4: average | K4: Default values | N4: Kw/kW | O4: Default values
A5: Product reference | D5: Tdesignh | E5: 2 | F5: °C | H5: ηAux (GCV) | I5: =0.85*I6+0.15*I7 -> 0 | J5: % | K5: 0.8 | M5: PrimGAS (GCV) | O5: 1
A6: Type of heat pump | B6: outdoor air-to-water | D6: Pdesignh | F6: kW | H6: η30% (GCV) | J6: % | M6: Primelec | O6: 2.5 | V6: chek Pdes | W6: =IF(OR(E6<0,E6="",NOT(ISNUMBER(E6))),1,"") -> 1 | AA6: =IF(E6="","Pdesign Missing","") -> Pdesign Missing | AB6: =IF(E6<0,"Pdesign Negative","") ->  | AC6: =IF(NOT(ISNUMBER(E6)),"Pdesign is not a number","") -> Pdesign is not a number
A7: Operating mode | B7: heating only | D7: Tbiv | F7: °C | H7: η100% (GCV) | J7: % | V7: Chek Tbiv | W7: =IF(E7="",1,"") -> 1 | X7: =IF(E7>7,1,"") ->  | Y7: =IF(E7<E5,1,"") -> 1 | AA7: =IF(E7="","Tbiv Missing","") -> Tbiv Missing | AB7: =IF(E7>7,"Tbiv > 7°C","") ->  | AC7: =IF(E7<E5,"Tbiv < Tdesign","") -> Tbiv < Tdesign
A8: Temperature application | B8: 55°C | D8: TOL | F8: °C | H8: eAux | J8: kW | K8: 0.02 | M8: Chek list: | V8: Chek TOL | W8: =IF(E8="",1,"") -> 1 | X8: =IF(E8>7,1,"") ->  | Y8: =IF(E7<E8,1,"") ->  | AA8: =IF(E8="","TOL Missing","") -> TOL Missing | AB8: =IF(E8>7,"TOL > 7°C","") ->  | AC8: =IF(E7<E8," TOL>Tbiv ","") -> 
A9: Water flow | B9: fixed | D9: Heh | E9: 1366 | F9: hours | M9: =AA6&" "&AB6&" "&AC6 -> Pdesign Missing Pdesign is not a number
A10: Water outlet temperature | B10: fixed | D10: Qrefh | E10: =$E$9*$E$6 -> 0 | F10: kWh | M10: =AA7 -> Tbiv Missing | O10: Tbiv < Tdesign
A11: Capacity control | B11: fixed | M11: TOL Missing | V11: η30% (GCV) | W11: =IF(OR(I6<0,AND(I6<>"",NOT(ISNUMBER(I6)))),1,"") ->  | AA11: =IF(W11=1,"Incorrect "&V11,"") -> 
A12: Calorific value of test gas | B12: GCV | M12: =AA18 -> Complete performance data with correct values | V12: η100% (GCV) | W12: =IF(OR(I7<0,AND(I7<>"",NOT(ISNUMBER(I7)))),1,"") ->  | AA12: =IF(W12=1,"Incorrect "&V12,"") -> 
M13: =AA29&AB29 -> Complete Auxiliary data for heating only | V13: eAux | W13: =IF(OR(I8<0,AND(I8<>"",NOT(ISNUMBER(I8)))),1,"") -> 
M14: =AA11&" "&AA12&" "&AA13 ->  | V14: PrimGAS (GCV) | W14: =IF(OR(N5<0,AND(N5<>"",NOT(ISNUMBER(N5)))),1,"") -> 
A15: Performance data | M15: =AA14&" "&AA15 ->  | V15: Primelec | W15: =IF(OR(N6<0,AND(N6<>"",NOT(ISNUMBER(N6)))),1,"") -> 
A16: Condition | B16: Outdoor air T°C | C16: Part load ratio (%) | D16: Part Load (kW) | E16: Inlet / outlet water temperatures for testing | F16: Declared Capacity (kW) | G16: Declared GUEd | H16: Declared AEFd
A17: A | B17: -7 | C17: NA | D17: NA | F17: NA | G17: NA | H17: NA | K17: Energy Efficiency | V17: Chek dati
A18: B | B18: 2 | C18: =(B18-16)/($E$5-16) -> 1 | D18: =IF($W$33>0,"",$E$6*C18) ->  | K18: SGUEhnet | L18: SAEFhnet | M18: SPERhnet | N18: SGUEh | O18: SAEFon | P18: SAEF | Q18: SPERh | R18: ηs | W18: =IF(AND(F18>0,ISNUMBER(F18)),"",1) -> 1 | X18: 1 | Y18: 1 | AA18: =IF(SUM(W18:Y22)>0,"Complete performance data with correct values","") -> Complete performance data with correct values
A19: C | B19: 7 | C19: 0.6428571429 | D19: =IF($W$33>0,"",$E$6*C19) ->  | K19: =IF($W$33>0,"",O51/P51) ->  | L19: =IF($W$33>0,"",O51/Q51) ->  | M19: =IF($W$33>0,"",IF(AND($N$5<>0,$N$6<>0),1/($N$5/$K$19+$N$6/L$19),IF(AND($N$5="",$N$6<>0),1/($O$5/$K$19+$N$6/L$19),IF(AND($N$5<>0,$N$6=""),1/($N$5/$K$19+$O$6/L$19),1/($O$5/$K$19+$O$6/L$19))))) ->  | N19: =IF($W$33>0,"",K51/M51) ->  | O19: =IF($W$33>0,"",K51/N51) ->  | P19: =IF($W$33>0,"",IF($B$7="heating only",E10/(E10/O19+D29+D30+D31),E10/(E10/O19+I29+I30+I31))) ->  | Q19: =IF($W$33>0,"",IF(AND($N$5<>0,$N$6<>0),1/($N$5/$N$19+$N$6/P$19),(IF(AND($N$5="",$N$6<>0),1/($O$5/$N$19+$N$6/P$19),IF(AND($N$5<>0,$N$6=""),1/($N$5/$N$19+$O$6/P$19),1/($O$5/$N$19+$O$6/P$19)))))) ->  | R19: =IF($W$33>0,"",$Q$19*100-L27-L28) ->  | W19: 1 | X19: 1 | Y19: 1
A20: D | B20: 12 | C20: 0.2857142857 | D20: =IF($W$33>0,"",$E$6*C20) ->  | W20: 1 | X20: 1 | Y20: 1
A21: E(TOL) | B21: =IF(E8="","",IF(E8<2,2,E8)) ->  | C21: =IF(B21="","",(B21-16)/($E$5-16)) ->  | D21: =IF($W$33>0,"",$E$6*C21) ->  | W21: 1 | X21: 1 | Y21: 1
A22: F(Tbiv) | B22: =IF(E7="","",E7) ->  | C22: =IF(B22="","",(B22-16)/($E$5-16)) ->  | D22: =IF($W$33>0,"",$E$6*C22) ->  | W22: 1 | X22: 1 | Y22: 1
A25: Auxiliairy power consumptions | K25: Correction Factors
A26: Operating modes for heating only | F26: Operating modes for reversible units
B27: Hours | C27: Power input | D27: P * h | G27: Hours | H27: Power input | I27: P * h | K27: F1 | L27: 3 | M27: %
C28: (kW) | D28: (kWh) | H28: (kW) | I28: (kWh) | K28: F2 | L28: =IF($B$6="ground water-to-water",2,IF($B$6="ground/brine-to-water",1,0)) -> 0 | M28: %
A29: Thermostat off | B29: 754 | D29: =C29*B29 -> 0 | F29: Thermostat off | G29: 754 | I29: =H29*G29 -> 0 | V29: Chek Aux. | W29: =IF($B$7="heating only",IF(AND(C29>=0,ISNUMBER(C29)),"",1),"") -> 1 | X29: =IF($B$7="reversible",IF(AND(H29>=0,ISNUMBER(H29)),"",1),"") ->  | AA29: =IF(SUM(W29:W31)>0,"Complete Auxiliary data for heating only","") -> Complete Auxiliary data for heating only | AB29: =IF(SUM(X29:X31)>0,"Complete Auxiliary data for reversible unit","") -> 
A30: Stand by | B30: 0 | D30: =C30*B30 -> 0 | F30: Stand by | G30: 0 | I30: =H30*G30 -> 0 | W30: =IF($B$7="heating only",IF(AND(C30>=0,ISNUMBER(C30)),"",1),"") -> 1 | X30: =IF($B$7="reversible",IF(AND(H30>=0,ISNUMBER(H30)),"",1),"") -> 
A31: Off mode | B31: 4416 | D31: 0 | F31: Off mode | G31: 0 | I31: 0 | W31: =IF($B$7="heating only",IF(AND(C31>=0,ISNUMBER(C31)),"",1),"") -> 1 | X31: =IF($B$7="reversible",IF(AND(H31>=0,ISNUMBER(H31)),"",1),"") -> 
A33: Bin calculation | W33: =SUM(W6:Y31) -> 22
A34: Condition | B34: Bin | C34: Outdoor air temp. | D34: Hours | E34: Part load ratio | F34: Heat demand | G34: Heat load covered by the heat pump | J34: Heat load covered by auxiliary heater | K34: Annual heating demand | L34: Annual auxiliary heat | M34: Annual gas input with auxiliary heater | N34: Annual electricity input (auxiliary heater | O34: Annual heat produced by GAHP net | P34: Annual gas input for GAHP net | Q34: Annual electricity input for GAHP net
B35: j | C35: Tj | D35: hj | F35: Ph(tj) | H35: GUEh(Tj) | I35: AEFh(Tj) | J35: Paux(Tj) | K35: hj * Ph(Tj) | L35: hj * Paux(Tj) | O35: hj *[Ph(Tj)-Paux(Tj) | P35: hj *[Ph(Tj)-Paux(Tj) /GUEh(Tj)] | Q35: hj *[Ph(Tj)-Paux(Tj) /AEFh(Tj)] | Y35: P declared | Z35: P declared | AA35: GUE | AB35: GUE | AC35: aef | AD35: aef
B36: - | C36: °C | D36: h | E36: % | F36: kW | G36: kW | H36: - | I36: - | J36: kW | K36: kWh | L36: kWh | M36: kWh | N36: kWh | O36: kWh | P36: kWh | Q36: kWh | V36: 0 | W36: 0
A37: =IF(AND(C37=$B$21,C37=$E$7,C37=2),"B/E/F",IF(C37=$B$21,"B/E",IF(C37=$E$7,"B/F","B"))) -> B | B37: 33 | C37: 2 | D37: 3 | E37: =(C37-16)/($E$5-16) -> 1 | F37: =IF($W$33>0,"",$E$6*E37) ->  | G37: =IF($W$33>0,"",IF($C37<$E$8,0,IF($C37=$E$7,F$22,IF($C37=$E$8,F$21,IF($V37=1,$Y37,($C37-$W37)/($X37-$W37)*($Z37-$Y37)+$Y37))))) ->  | H37: =IF($W$33>0,"",IF($C37<$E$8,0,IF($C37=$E$7,G$22,IF($C37=$E$8,$G$21,IF($V37=1,$AA37,($C37-$W37)/($X37-$W37)*($AB37-$AA37)+$AA37))))) ->  | I37: =IF($W$33>0,"",IF($C37<$E$8,0,IF($C37=$E$7,H$22,IF($C37=$E$8,H$21,IF($V37=1,$AC37,($C37-$W37)/($X37-$W37)*($AD37-$AC37)+$AC37))))) ->  | J37: =IF($W$33>0,"",IF(C37<$E$8,F37,IF(C37<$E$7,F37-G37,0))) ->  | K37: =IF($W$33>0,"",F37*D37) ->  | L37: =IF($W$33>0,"",J37*D37) ->  | M37: =IF($W$33>0,"",IF(AND(C37<$E$8,$I$5=0),K37/$K$5,IF(AND(C37<$E$8,$I$5>0),K37/$I$5,IF(AND(C37<$E$7,$I$5=0),D37*(G37/H37+J37/$K$5),IF(AND(C37<$E$7,$I$5>0),D37*(G37/H37+J37/$I$5),K37/H37))))) ->  | N37: =IF($W$33>0,"",IF(AND(C37<$E$8,$I$8=""),K37*$K$8,IF(AND(C37<$E$8,$I$8>0),K37*$I$8,IF(AND(C37<$E$7,$I$8=""),D37*(G37/I37+J37*$K$8),IF(AND(C37<$E$7,$I$8>0),D37*(G37/I37+J37*$I$8),K37/I37))))) ->  | O37: =IF($W$33>0,"",IF(C37<$E$8,0,D37*(F37-J37))) ->  | P37: =IF($W$33>0,"",IF(C37<$E$8,0,D37*((F37-J37)/H37))) ->  | Q37: =IF($W$33>0,"",IF(C37<$E$8,0,D37*((F37-J37)/I37))) ->  | V37: =IF(A37="",0,1) -> 1 | W37: =IF(V37=0,W36,C37) -> 2 | X37: =IF(V37=0,X38,C37) -> 2 | Y37: =VLOOKUP(W37,$B$18:$H$22,5,FALSE) -> 0 | Z37: =VLOOKUP(X37,$B$18:$H$22,5,FALSE) -> 0 | AA37: =VLOOKUP(W37,$B$18:$H$22,6,FALSE) -> 0 | AB37: =VLOOKUP(X37,$B$18:$H$22,6,FALSE) -> 0 | AC37: =VLOOKUP(W37,$B$18:$H$22,7,FALSE) -> 0 | AD37: =VLOOKUP(X37,$B$18:$H$22,7,FALSE) -> 0
A38: =IF(OR($E$7="",$E$8=""),IF(AND(C38=$B$21,C38=$E$7),"E/F",IF(C38=$B$21,"E",IF(C38=$E$7,"F","")))) ->  | B38: 34 | C38: 3 | D38: 22 | E38: 0.9285714286 | N38: =IF($W$33>0,"",IF(AND(C38<$E$8,$I$8=""),K38*$K$8,IF(AND(C38<$E$8,$I$8>0),K38*$I$8,IF(AND(C38<$E$7,$I$8=""),D38*(G38/I38+J38*$K$8),IF(AND(C38<$E$7,$I$8>0),D38*(G38/I38+J38*$I$8),K38/I38))))) ->  | V38: 0 | W38: 2 | X38: 7 | Y38: 0 | Z38: 0 | AA38: 0 | AB38: 0 | AC38: 0 | AD38: 0
A39: =IF(OR($E$7="",$E$8=""),IF(AND(C39=$B$21,C39=$E$7),"E/F",IF(C39=$B$21,"E",IF(C39=$E$7,"F","")))) ->  | B39: 35 | C39: 4 | D39: 63 | E39: 0.8571428571 | V39: 0 | W39: 2 | X39: 7 | Y39: 0 | Z39: 0 | AA39: 0 | AB39: 0 | AC39: 0 | AD39: 0
B40: 36 | C40: 5 | D40: 63 | E40: 0.7857142857 | V40: 0 | W40: 2 | X40: 7 | Y40: 0 | Z40: 0 | AA40: 0 | AB40: 0 | AC40: 0 | AD40: 0
B41: 37 | C41: 6 | D41: 175 | E41: 0.7142857143 | V41: 0 | W41: 2 | X41: 7 | Y41: 0 | Z41: 0 | AA41: 0 | AB41: 0 | AC41: 0 | AD41: 0
A42: =IF(AND(C42=$B$21,C42=$E$7,C42=7),"C/E/F",IF(C42=$B$21,"C/E",IF(C42=$E$7,"C/F","C"))) -> C | B42: 38 | C42: 7 | D42: 162 | E42: 0.6428571429 | V42: 1 | W42: 7 | X42: 7 | Y42: 0 | Z42: 0 | AA42: 0 | AB42: 0 | AC42: 0 | AD42: 0
B43: 39 | C43: 8 | D43: 259 | E43: 0.5714285714 | V43: 0 | W43: 7 | X43: 12 | Y43: 0 | Z43: 0 | AA43: 0 | AB43: 0 | AC43: 0 | AD43: 0
B44: 40 | C44: 9 | D44: 360 | E44: 0.5 | V44: 0 | W44: 7 | X44: 12 | Y44: 0 | Z44: 0 | AA44: 0 | AB44: 0 | AC44: 0 | AD44: 0
B45: 41 | C45: 10 | D45: 428 | E45: 0.4285714286 | V45: 0 | W45: 7 | X45: 12 | Y45: 0 | Z45: 0 | AA45: 0 | AB45: 0 | AC45: 0 | AD45: 0
B46: 42 | C46: 11 | D46: 430 | E46: 0.3571428571 | V46: 0 | W46: 7 | X46: 12 | Y46: 0 | Z46: 0 | AA46: 0 | AB46: 0 | AC46: 0 | AD46: 0
A47: D | B47: 43 | C47: 12 | D47: 503 | E47: 0.2857142857 | V47: 1 | W47: 12 | X47: 12 | Y47: 0 | Z47: 0 | AA47: 0 | AB47: 0 | AC47: 0 | AD47: 0
B48: 44 | C48: 13 | D48: 444 | E48: 0.2142857143 | V48: 0 | W48: 7 | X48: 12 | Y48: 0 | Z48: 0 | AA48: 0 | AB48: 0 | AC48: 0 | AD48: 0
B49: 45 | C49: 14 | D49: 384 | E49: 0.1428571429 | V49: 0 | W49: =IF(V49=0,W48,C49) -> 7 | X49: 12 | Y49: 0 | Z49: 0 | AA49: 0 | AB49: 0 | AC49: 0 | AD49: 0
B50: 46 | C50: 15 | D50: 294 | E50: 0.07142857143 | V50: 0 | W50: =IF(V50=0,W49,C50) -> 7 | X50: 12 | Y50: 0 | Z50: 0 | AA50: 0 | AB50: 0 | AC50: 0 | AD50: 0
D51: =SUM(D37:D50) -> 3590 | K51: =SUM(K37:K50) -> 0 | L51: 0 | M51: 0 | N51: 0 | O51: 0 | P51: 0 | Q51: 0

Sheet SGUEc_water_based HP
A1: Calculation of energy efficiency - COOLING - Average climate
A3: Product reference | D3: Reference conditions
A4: Manufacturer | D4: Climate | E4: average
A5: Product reference | D5: Tdesignh | E5: 35 | F5: °C
A6: Type of heat pump | B6: outdoor air-to-water | D6: Pdesignh | F6: kW | R6: chek Pdes | S6: =IF(OR(E6<0,E6="",NOT(ISNUMBER(E6))),1,"") -> 1 | W6: =IF(E6="","Pdesignc Missing","") -> Pdesignc Missing | X6: =IF(E6<0,"Pdesign Negative","") ->  | Y6: =IF(NOT(ISNUMBER(E6)),"Pdesignc is not a number","") -> Pdesignc is not a number
A7: Operating mode | B7: cooling only | D7: Hec | E7: 350 | F7: hours
A8: Temperature application | B8: 23/18°C | D8: Qrefh | E8: =IF($S$33>0,"",$E$7*$E$6) ->  | F8: kWh
A9: Water outlet temperature | B9: fixed
A10: Capacity control | B10: fixed | K10: Chek list:
A11: Calorific value of test gas | B11: GCV | K11: =W6&X6&" "&Y6 -> Pdesignc Missing Pdesignc is not a number
K12: =W17 -> Complete performance data with correct value
K13: =W29&X29 -> Complete Auxiliary data for cooling only
A15: Performance data
A16: Condition | B16: Outdoor air T°C | C16: Part load ratio (%) | D16: Part Load (kW) | E16: Inlet / outlet water temperatures for testing | F16: Declared Capacity (kW) | G16: Declared GUEd | H16: Declared AEFd
A17: A | B17: 35 | C17: =(B17-16)/($E$5-16) -> 1 | D17: =IF(S33>0,"",$E$6*C17) ->  | K17: Energy Efficiency | R17: Chek dati | S17: =IF(AND(F17>0,ISNUMBER(F17)),"",1) -> 1 | T17: 1 | U17: 1 | W17: =IF(SUM(S17:U20)>0,"Complete performance data with correct value","") -> Complete performance data with correct value
A18: B | B18: 30 | C18: =(B18-16)/($E$5-16) -> 0.7368421053 | D18: =IF(S33>0,"",$E$6*C18) ->  | K18: SGUEc | L18: SAEFcon | M18: SAEFc | S18: 1 | T18: 1 | U18: 1
A19: C | B19: 25 | C19: =(B19-16)/($E$5-16) -> 0.4736842105 | D19: =IF(S33>0,"",$E$6*C19) ->  | K19: =IF(S33>0,"",J61/K61) ->  | L19: =IF(S33>0,"",J61/L61) ->  | M19: =IF(S33>0,"",IF($B$7="cooling only",E8/(E8/L19+D29+D30+D31),E8/(E8/L19+I29+I30+I31))) ->  | S19: 1 | T19: 1 | U19: 1
A20: D | B20: 20 | C20: =(B20-16)/($E$5-16) -> 0.2105263158 | D20: =IF(S33>0,"",$E$6*C20) ->  | S20: 1 | T20: 1 | U20: 1
A25: Auxiliairy power consumptions
A26: Operating modes for cooling only | F26: Operating modes for reversible units
B27: Hours | C27: Power input | D27: P * h | G27: Hours | H27: Power input | I27: P * h
C28: (kW) | D28: (kWh) | H28: (kW) | I28: (kWh)
A29: Thermostat off | B29: 221 | D29: =C29*B29 -> 0 | F29: Thermostat off | G29: 221 | I29: =H29*G29 -> 0 | R29: Chek Aux. | S29: =IF($B$7="cooling only",IF(AND(C29>=0,ISNUMBER(C29)),"",1),"") -> 1 | T29: =IF($B$7="reversible",IF(AND(H29>=0,ISNUMBER(H29)),"",1),"") ->  | W29: =IF(SUM(S29:S31)>0,"Complete Auxiliary data for cooling only","") -> Complete Auxiliary data for cooling only | X29: =IF(SUM(T29:T31)>0,"Complete Auxiliary data for reversible unit","") -> 
A30: Stand by | B30: 2142 | D30: =C30*B30 -> 0 | F30: Stand by | G30: 2142 | I30: =H30*G30 -> 0 | S30: =IF($B$7="cooling only",IF(AND(C30>=0,ISNUMBER(C30)),"",1),"") -> 1 | T30: =IF($B$7="reversible",IF(AND(H30>=0,ISNUMBER(H30)),"",1),"") -> 
A31: Off mode | B31: 5088 | D31: =C31*B31 -> 0 | F31: Off mode | G31: 0 | I31: =H31*G31 -> 0 | S31: =IF($B$7="cooling only",IF(AND(C31>=0,ISNUMBER(C31)),"",1),"") -> 1 | T31: =IF($B$7="reversible",IF(AND(H31>=0,ISNUMBER(H31)),"",1),"") -> 
A33: Bin calculation | S33: =SUM(S6:U31) -> 16
A34: Condition | B34: Bin | C34: Outdoor air temp. | D34: Hours | E34: Part load ratio | F34: Cooling demand | G34: Cooling load covered by the heat pump | J34: Annual cooling demand | K34: Annual gas input | L34: Annual electricity input f
B35: j | C35: Tj | D35: hj | F35: Pc(tj) | H35: GUEc(Tj) | I35: AEFc(Tj) | J35: hj * fon*Pc(Tj) | T35: P declared | U35: P declared | V35: GUE | W35: GUE | X35: aef | Y35: aef
B36: - | C36: °C | D36: h | E36: % | F36: kW | G36: kW | H36: - | I36: - | J36: kWh | K36: kWh | L36: kWh | Q36: =IF(A36="",0,1) -> 0 | R36: 0
B37: 1 | C37: 17 | D37: 205 | E37: =(C37-16)/($E$5-16) -> 0.05263157895 | F37: =IF($S$33>0,"",$E$6*E37) ->  | G37: =IF($S$33>0,"",G$40) ->  | J37: =IF($S$33>0,"",F37*D37*(350/954)) ->  | K37: =IF($S$33>0,"",($J37/H37)) ->  | L37: =IF($S$33>0,"",($J37/I37)) ->  | Q37: 0 | R37: 20 | S37: =IF(Q37=0,S38,C37) -> 25 | T37: =VLOOKUP(R37,$B$17:$H$20,5,FALSE) -> 0 | U37: 0 | V37: =VLOOKUP(R37,$B$17:$H$20,6,FALSE) -> 0 | W37: 0 | X37: =VLOOKUP(R37,$B$17:$H$20,7,FALSE) -> 0 | Y37: 0
B38: =B37+1 -> 2 | C38: =C37+1 -> 18 | D38: 227 | E38: =(C38-16)/($E$5-16) -> 0.1052631579 | J38: =IF($S$33>0,"",F38*D38*(350/954)) ->  | Q38: 0 | R38: 20 | S38: =IF(Q38=0,S39,C38) -> 25 | T38: 0 | U38: 0 | V38: 0 | W38: 0 | X38: 0 | Y38: 0
B39: =B38+1 -> 3 | C39: 19 | D39: 225 | E39: 0.1578947368 | Q39: 0 | R39: 20 | S39: =IF(Q39=0,S40,C39) -> 25 | T39: 0 | U39: 0 | V39: 0 | W39: 0 | X39: 0 | Y39: 0
A40: D | B40: 4 | C40: 20 | D40: 225 | E40: =(C40-16)/($E$5-16) -> 0.2105263158 | G40: =IF($S$33>0,"",IF($Q40=1,$T40,($C40-$R40)/($S40-$R40)*($U40-$T40)+$T40)) ->  | H40: =IF($S$33>0,"",IF($Q40=1,$V40,($C40-$R40)/($S40-$R40)*($W40-$V40)+$V40)) ->  | I40: =IF($S$33>0,"",IF($Q40=1,$X40,($C40-$R40)/($S40-$R40)*($Y40-$X40)+$X40)) ->  | Q40: 1 | R40: =IF(Q40=0,R39,C40) -> 20 | S40: 25 | T40: 0 | U40: 0 | V40: 0 | W40: 0 | X40: 0 | Y40: 0
B41: 5 | C41: 21 | D41: 216 | E41: 0.2631578947 | K41: =IF($S$33>0,"",($J41/H41)) ->  | Q41: 0 | R41: 20 | S41: =IF(Q41=0,S42,C41) -> 25 | T41: 0 | U41: 0 | V41: 0 | W41: 0 | X41: 0 | Y41: 0
B42: 6 | C42: 22 | D42: 215 | E42: 0.3157894737 | Q42: 0 | R42: 20 | S42: 25 | T42: 0 | U42: 0 | V42: 0 | W42: 0 | X42: 0 | Y42: 0
B43: 7 | C43: 23 | D43: 218 | E43: 0.3684210526 | Q43: 0 | R43: 20 | S43: 25 | T43: 0 | U43: 0 | V43: 0 | W43: 0 | X43: 0 | Y43: 0
B44: 8 | C44: 24 | D44: 197 | E44: 0.4210526316 | Q44: 0 | R44: 20 | S44: 25 | T44: 0 | U44: 0 | V44: 0 | W44: 0 | X44: 0 | Y44: 0
A45: C | B45: 9 | C45: 25 | D45: 178 | E45: 0.4736842105 | Q45: 1 | R45: 25 | S45: 25 | T45: 0 | U45: 0 | V45: 0 | W45: 0 | X45: 0 | Y45: 0
B46: 10 | C46: 26 | D46: 158 | E46: 0.5263157895 | Q46: 0 | R46: 25 | S46: 30 | T46: 0 | U46: 0 | V46: 0 | W46: 0 | X46: 0 | Y46: 0
B47: 11 | C47: 27 | D47: 137 | E47: 0.5789473684 | Q47: 0 | R47: 25 | S47: 30 | T47: 0 | U47: 0 | V47: 0 | W47: 0 | X47: 0 | Y47: 0
B48: 12 | C48: 28 | D48: 109 | E48: 0.6315789474 | Q48: 0 | R48: 25 | S48: 30 | T48: 0 | U48: 0 | V48: 0 | W48: 0 | X48: 0 | Y48: 0
B49: 13 | C49: 29 | D49: 88 | E49: 0.6842105263 | Q49: 0 | R49: 25 | S49: 30 | T49: 0 | U49: 0 | V49: 0 | W49: 0 | X49: 0 | Y49: 0
A50: B | B50: 14 | C50: 30 | D50: 63 | E50: 0.7368421053 | Q50: 1 | R50: 30 | S50: 30 | T50: 0 | U50: 0 | V50: 0 | W50: 0 | X50: 0 | Y50: 0
B51: 15 | C51: 31 | D51: 39 | E51: 0.7894736842 | Q51: 0 | R51: 30 | S51: 35 | T51: 0 | U51: 0 | V51: 0 | W51: 0 | X51: 0 | Y51: 0
B52: 16 | C52: 32 | D52: 31 | E52: 0.8421052632 | Q52: 0 | R52: 30 | S52: 35 | T52: 0 | U52: 0 | V52: 0 | W52: 0 | X52: 0 | Y52: 0
B53: 17 | C53: 33 | D53: 24 | E53: 0.8947368421 | Q53: 0 | R53: 30 | S53: 35 | T53: 0 | U53: 0 | V53: 0 | W53: 0 | X53: 0 | Y53: 0
B54: 18 | C54: 34 | D54: 17 | E54: 0.9473684211 | Q54: 0 | R54: 30 | S54: 35 | T54: 0 | U54: 0 | V54: 0 | W54: 0 | X54: 0 | Y54: 0
A55: A | B55: =B54+1 -> 19 | C55: 35 | D55: 13 | E55: 1 | Q55: 1 | R55: 35 | S55: 35 | T55: 0 | U55: 0 | V55: 0 | W55: 0 | X55: 0 | Y55: 0
B56: 20 | C56: 36 | D56: 9 | E56: 1 | G56: =IF($S$33>0,"",G$55) ->  | Q56: 0 | R56: 35 | S56: 30 | T56: 0 | U56: 0 | V56: 0 | W56: 0 | X56: 0 | Y56: 0
B57: 21 | C57: 37 | D57: 4 | E57: 1 | Q57: 0 | R57: 35 | S57: 30 | T57: 0 | U57: 0 | V57: 0 | W57: 0 | X57: 0 | Y57: 0
B58: 22 | C58: 38 | D58: 3 | E58: 1 | Q58: 0 | R58: =IF(Q58=0,R57,C58) -> 35 | S58: 30 | T58: 0 | U58: 0 | V58: 0 | W58: 0 | X58: 0 | Y58: 0
B59: 23 | C59: 39 | D59: 1 | E59: 1 | Q59: 0 | R59: =IF(Q59=0,R58,C59) -> 35 | S59: 30 | T59: 0 | U59: 0 | V59: 0 | W59: 0 | X59: 0 | Y59: 0
B60: 24 | C60: 40 | D60: 0 | E60: 1 | Q60: 0 | R60: =IF(Q60=0,R59,C60) -> 35 | S60: 30 | T60: 0 | U60: 0 | V60: 0 | W60: 0 | X60: 0 | Y60: 0
D61: =SUM(D37:D60) -> 2602 | J61: =SUM(J37:J60) -> 0 | K61: =SUM(K37:K60) -> 0 | L61: 0
